[Event "Live Chess"]
[Site "Chess.com"]
[Date "2021.02.06"]
[Round "2"]
[White "vikrams76"]
[Black "Pranil09"]
[Result "1-0"]
[CurrentPosition "5kr1/p3np2/2p2p2/2p1p2p/4P3/P1r2P2/1R3P1P/3QK2R b - -"]
[Timezone "UTC"]
[ECO "C46"]
[ECOUrl "https://www.chess.com/openings/Four-Knights-Game"]
[UTCDate "2021.02.06"]
[UTCTime "19:02:00"]
[WhiteElo "815"]
[BlackElo "627"]
[TimeControl "1200+10"]
[Termination "vikrams76 won by resignation"]
[StartTime "19:02:00"]
[EndDate "2021.02.06"]
[EndTime "19:15:26"]
[Link "https://www.chess.com/live/game/6472138029"]

1. e4 {[%clk 0:20:10]} 1... e5 {[%clk 0:20:07.2]} 2. Nf3 {[%clk 0:20:18.8]} 2... Nc6 {[%clk 0:19:48.8]} 3. Nc3 {[%clk 0:20:26.1]} 3... Nf6 {[%clk 0:19:36.1]} 4. d3 {[%clk 0:20:35]} 4... Bb4 {[%clk 0:18:56.5]} 5. Bg5 {[%clk 0:20:42.3]} 5... h6 {[%clk 0:17:16]} 6. Bxf6 {[%clk 0:20:49.2]} 6... gxf6 {[%clk 0:17:13.9]} 7. a3 {[%clk 0:20:56.2]} 7... Bxc3+ {[%clk 0:16:18.5]} 8. bxc3 {[%clk 0:21:03.9]} 8... d6 {[%clk 0:16:25.3]} 9. c4 {[%clk 0:21:11.7]} 9... Bg4 {[%clk 0:15:59]} 10. c3 {[%clk 0:21:18.2]} 10... h5 {[%clk 0:15:46.3]} 11. d4 {[%clk 0:21:23.4]} 11... Bxf3 {[%clk 0:15:42.9]} 12. gxf3 {[%clk 0:21:31.3]} 12... Rg8 {[%clk 0:15:31.6]} 13. d5 {[%clk 0:21:40.1]} 13... Ne7 {[%clk 0:15:12.5]} 14. c5 {[%clk 0:21:41.6]} 14... dxc5 {[%clk 0:15:15.9]} 15. Bb5+ {[%clk 0:21:46.4]} 15... c6 {[%clk 0:14:06.6]} 16. dxc6 {[%clk 0:21:53.3]} 16... bxc6 {[%clk 0:14:09.8]} 17. Ba4 {[%clk 0:22:01.5]} 17... Rb8 {[%clk 0:14:09.6]} 18. Qc1 {[%clk 0:21:49.3]} 18... Qa5 {[%clk 0:13:36.7]} 19. Bb3 {[%clk 0:21:46]} 19... Rxb3 {[%clk 0:13:42.1]} 20. Qd1 {[%clk 0:21:46.4]} 20... Qxc3+ {[%clk 0:13:32.4]} 21. Ke2 {[%clk 0:21:50.1]} 21... Qb2+ {[%clk 0:13:33.2]} 22. Ke1 {[%clk 0:21:54.5]} 22... Rc3 {[%clk 0:13:37.1]} 23. Rb1 {[%clk 0:21:58.6]} 23... Kf8 {[%clk 0:12:56.5]} 24. Rxb2 {[%clk 0:22:02.6]} 1-0

[Event "Live Chess"]
[Site "Chess.com"]
[Date "2021.02.06"]
[Round "2"]
[White "Relish_potatoes"]
[Black "ChessbroSunguy"]
[Result "1-0"]
[CurrentPosition "2kr4/pQ4Rp/3b1p2/1pp5/4P3/2P5/P3N1P1/RN2KB2 b - -"]
[Timezone "UTC"]
[ECO "C33"]
[ECOUrl "https://www.chess.com/openings/Kings-Gambit-Accepted"]
[UTCDate "2021.02.06"]
[UTCTime "19:02:05"]
[WhiteElo "565"]
[BlackElo "323"]
[TimeControl "1200+10"]
[Termination "Relish_potatoes won by checkmate"]
[StartTime "19:02:05"]
[EndDate "2021.02.06"]
[EndTime "19:08:22"]
[Link "https://www.chess.com/live/game/6472139167"]

1. e4 {[%clk 0:20:09.7]} 1... e5 {[%clk 0:20:02.4]} 2. f4 {[%clk 0:20:17.8]} 2... exf4 {[%clk 0:20:05.7]} 3. d3 {[%clk 0:20:26.4]} 3... Qh4+ {[%clk 0:20:08.4]} 4. Kd2 {[%clk 0:20:17.2]} 4... Bb4+ {[%clk 0:20:12.6]} 5. c3 {[%clk 0:20:25.6]} 5... Bc5 {[%clk 0:20:18.5]} 6. d4 {[%clk 0:20:33.9]} 6... Be7 {[%clk 0:20:25.5]} 7. Kc2 {[%clk 0:20:36.4]} 7... d6 {[%clk 0:20:30.5]} 8. Ne2 {[%clk 0:20:41.3]} 8... Nf6 {[%clk 0:20:37.5]} 9. Bxf4 {[%clk 0:20:47.6]} 9... Qh5 {[%clk 0:20:39.8]} 10. Kd2 {[%clk 0:20:47.4]} 10... Nc6 {[%clk 0:20:31.4]} 11. d5 {[%clk 0:20:45.5]} 11... Na5 {[%clk 0:20:37.1]} 12. b4 {[%clk 0:20:53.3]} 12... Nc4+ {[%clk 0:20:42.1]} 13. Ke1 {[%clk 0:21:00.2]} 13... Bg4 {[%clk 0:20:39.5]} 14. h3 {[%clk 0:21:06.3]} 14... Qh4+ {[%clk 0:20:37.9]} 15. Bg3 {[%clk 0:21:01.3]} 15... Qg5 {[%clk 0:20:42.7]} 16. hxg4 {[%clk 0:21:09.9]} 16... Nxg4 {[%clk 0:20:49.9]} 17. Bf4 {[%clk 0:21:02.7]} 17... Qh4+ {[%clk 0:20:55.2]} 18. Rxh4 {[%clk 0:21:11.4]} 18... O-O-O {[%clk 0:20:55.7]} 19. Rxg4 {[%clk 0:21:18.6]} 19... c5 {[%clk 0:20:59.3]} 20. bxc5 {[%clk 0:21:27]} 20... dxc5 {[%clk 0:21:07.7]} 21. Qa4 {[%clk 0:21:32.2]} 21... Rhf8 {[%clk 0:21:11.5]} 22. Qxc4 {[%clk 0:21:37.7]} 22... f6 {[%clk 0:20:39.8]} 23. d6 {[%clk 0:21:45.6]} 23... Rxd6 {[%clk 0:20:43.9]} 24. Bxd6 {[%clk 0:21:54.2]} 24... Bxd6 {[%clk 0:20:46.5]} 25. Qd5 {[%clk 0:21:58.6]} 25... Rd8 {[%clk 0:20:47.5]} 26. Rxg7 {[%clk 0:22:06.4]} 26... b5 {[%clk 0:20:48.3]} 27. Qb7# {[%clk 0:21:58.6]} 1-0

[Event "Live Chess"]
[Site "Chess.com"]
[Date "2021.02.06"]
[Round "2"]
[White "luckybananas"]
[Black "tastycelery7"]
[Result "0-1"]
[CurrentPosition "8/8/8/8/8/1k6/8/1K5r w - -"]
[Timezone "UTC"]
[ECO "C48"]
[ECOUrl "https://www.chess.com/openings/Four-Knights-Game-Spanish-Variation-Ranken-Variation-5...dxc6-6.Nxe5"]
[UTCDate "2021.02.06"]
[UTCTime "19:01:45"]
[WhiteElo "1052"]
[BlackElo "1456"]
[TimeControl "1200+10"]
[Termination "tastycelery7 won by checkmate"]
[StartTime "19:01:45"]
[EndDate "2021.02.06"]
[EndTime "19:17:02"]
[Link "https://www.chess.com/live/game/6472139631"]

1. e4 {[%clk 0:20:07.6]} 1... e5 {[%clk 0:20:02.9]} 2. Nf3 {[%clk 0:20:09.5]} 2... Nc6 {[%clk 0:19:57.2]} 3. Nc3 {[%clk 0:20:14.7]} 3... Nf6 {[%clk 0:20:05.6]} 4. Bb5 {[%clk 0:20:19]} 4... a6 {[%clk 0:20:12.5]} 5. Bxc6 {[%clk 0:20:26.8]} 5... dxc6 {[%clk 0:20:18.2]} 6. Nxe5 {[%clk 0:20:34.1]} 6... Bd6 {[%clk 0:20:26.4]} 7. Nf3 {[%clk 0:20:41.3]} 7... Bg4 {[%clk 0:20:34.4]} 8. d3 {[%clk 0:20:48.4]} 8... O-O {[%clk 0:20:42.5]} 9. Bg5 {[%clk 0:20:55.9]} 9... h6 {[%clk 0:20:51.3]} 10. h3 {[%clk 0:21:02]} 10... Bxf3 {[%clk 0:20:51.8]} 11. Bxf6 {[%clk 0:21:07.3]} 11... Bxd1 {[%clk 0:20:57.1]} 12. Bxd8 {[%clk 0:21:15.3]} 12... Bxc2 {[%clk 0:21:04.2]} 13. Bh4 {[%clk 0:21:08.2]} 13... Bxd3 {[%clk 0:21:11.5]} 14. O-O-O {[%clk 0:21:11.4]} 14... Bf4+ {[%clk 0:21:16.4]} 15. Rd2 {[%clk 0:21:11.8]} 15... Bxd2+ {[%clk 0:21:25]} 16. Kxd2 {[%clk 0:21:21.4]} 16... Bb5 {[%clk 0:21:22.4]} 17. a4 {[%clk 0:21:28.3]} 17... g5 {[%clk 0:21:16.6]} 18. Bg3 {[%clk 0:21:27.9]} 18... Rad8+ {[%clk 0:21:24]} 19. Kc2 {[%clk 0:21:35.3]} 19... Bd3+ {[%clk 0:21:28.9]} 20. Kb3 {[%clk 0:21:43.1]} 20... f5 {[%clk 0:21:20]} 21. exf5 {[%clk 0:21:46.8]} 21... Rxf5 {[%clk 0:21:27.2]} 22. Bxc7 {[%clk 0:21:54.1]} 22... Rd7 {[%clk 0:21:29.5]} 23. Bg3 {[%clk 0:21:52.7]} 23... b5 {[%clk 0:21:27.7]} 24. axb5 {[%clk 0:21:59.3]} 24... axb5 {[%clk 0:21:35.8]} 25. Rd1 {[%clk 0:22:07.5]} 25... Bc4+ {[%clk 0:21:40.3]} 26. Kc2 {[%clk 0:22:15.3]} 26... Bb3+ {[%clk 0:21:47.8]} 27. Kxb3 {[%clk 0:22:23.7]} 27... Rxd1 {[%clk 0:21:54.4]} 28. Nxd1 {[%clk 0:22:32.2]} 28... Rd5 {[%clk 0:21:46.1]} 29. Ne3 {[%clk 0:22:37.5]} 29... Rd3+ {[%clk 0:21:43.1]} 30. Kb4 {[%clk 0:22:45.4]} 30... Rd2 {[%clk 0:21:46.3]} 31. Kc5 {[%clk 0:22:49.7]} 31... Rxb2 {[%clk 0:21:52]} 32. Kxc6 {[%clk 0:22:58.3]} 32... b4 {[%clk 0:21:59.3]} 33. Nc4 {[%clk 0:23:06.2]} 33... Rc2 {[%clk 0:22:03.3]} 34. Kb5 {[%clk 0:23:11.9]} 34... b3 {[%clk 0:22:05.3]} 35. Na3 {[%clk 0:23:02.6]} 35... b2 {[%clk 0:22:07.4]} 36. f4 {[%clk 0:23:03.9]} 36... Rc1 {[%clk 0:22:08.8]} 37. fxg5 {[%clk 0:23:05.3]} 37... b1=Q+ {[%clk 0:22:15.1]} 38. Nxb1 {[%clk 0:23:13.5]} 38... Rxb1+ {[%clk 0:22:23.6]} 39. Kc5 {[%clk 0:23:23.3]} 39... hxg5 {[%clk 0:22:30.4]} 40. Kd5 {[%clk 0:23:29.7]} 40... Rg1 {[%clk 0:22:36.9]} 41. Bd6 {[%clk 0:23:33.8]} 41... Rxg2 {[%clk 0:22:42.3]} 42. Be7 {[%clk 0:23:41.9]} 42... Rg3 {[%clk 0:22:36.5]} 43. h4 {[%clk 0:23:20.8]} 43... g4 {[%clk 0:22:29.7]} 44. Bd6 {[%clk 0:23:17.6]} 44... Rh3 {[%clk 0:22:35.9]} 45. Ke4 {[%clk 0:23:21.2]} 45... g3 {[%clk 0:22:44]} 46. Kf3 {[%clk 0:23:26.4]} 46... Rxh4 {[%clk 0:22:45.4]} 47. Bxg3 {[%clk 0:23:31.8]} 47... Rh7 {[%clk 0:22:50.5]} 48. Kg4 {[%clk 0:23:34.5]} 48... Kf7 {[%clk 0:22:58.1]} 49. Kf4 {[%clk 0:23:42.2]} 49... Ke6 {[%clk 0:23:06.2]} 50. Ke4 {[%clk 0:23:48.7]} 50... Rg7 {[%clk 0:23:14.1]} 51. Be5 {[%clk 0:23:55.6]} 51... Rg4+ {[%clk 0:23:19.7]} 52. Kf3 {[%clk 0:24:03.2]} 52... Rg1 {[%clk 0:23:17.2]} 53. Bd4 {[%clk 0:24:09.7]} 53... Rd1 {[%clk 0:23:21.1]} 54. Ba7 {[%clk 0:24:16.2]} 54... Ra1 {[%clk 0:23:23.6]} 55. Bd4 {[%clk 0:24:23.7]} 55... Ra4 {[%clk 0:23:31.8]} 56. Bh8 {[%clk 0:24:30.5]} 56... Kf5 {[%clk 0:23:39.4]} 57. Ke3 {[%clk 0:24:35.3]} 57... Kg4 {[%clk 0:23:43.8]} 58. Bf6 {[%clk 0:24:39.3]} 58... Kf5 {[%clk 0:23:44.9]} 59. Bd4 {[%clk 0:24:43.1]} 59... Ra3+ {[%clk 0:23:48.5]} 60. Kd2 {[%clk 0:24:49.3]} 60... Ke4 {[%clk 0:23:55.9]} 61. Bb2 {[%clk 0:24:56.6]} 61... Rd3+ {[%clk 0:23:53.4]} 62. Kc2 {[%clk 0:25:03.2]} 62... Ke3 {[%clk 0:23:58.8]} 63. Bc1+ {[%clk 0:25:09.1]} 63... Ke4 {[%clk 0:24:04.4]} 64. Bd2 {[%clk 0:25:14.7]} 64... Rh3 {[%clk 0:24:09.9]} 65. Bc3 {[%clk 0:25:20.7]} 65... Rf3 {[%clk 0:24:11.9]} 66. Kb2 {[%clk 0:25:21]} 66... Kd5 {[%clk 0:24:15.3]} 67. Kb3 {[%clk 0:25:26.7]} 67... Kc5 {[%clk 0:24:23]} 68. Kc2 {[%clk 0:25:31.3]} 68... Kc4 {[%clk 0:24:28.4]} 69. Bg7 {[%clk 0:25:36.5]} 69... Rd3 {[%clk 0:24:36.1]} 70. Kb2 {[%clk 0:25:43.6]} 70... Kb4 {[%clk 0:24:33.3]} 71. Kc2 {[%clk 0:25:51.1]} 71... Kc4 {[%clk 0:24:38.6]} 72. Kb2 {[%clk 0:25:58.9]} 72... Rd2+ {[%clk 0:24:43.7]} 73. Kc1 {[%clk 0:26:06.3]} 73... Rg2 {[%clk 0:24:46.5]} 74. Kd1 {[%clk 0:26:13.8]} 74... Rxg7 {[%clk 0:24:54.3]} 75. Ke2 {[%clk 0:26:22.8]} 75... Rg3 {[%clk 0:25:02.8]} 76. Kf2 {[%clk 0:26:31.8]} 76... Rb3 {[%clk 0:25:10.3]} 77. Ke2 {[%clk 0:26:40.7]} 77... Kd4 {[%clk 0:25:19.3]} 78. Kf2 {[%clk 0:26:49.6]} 78... Ke4 {[%clk 0:25:28]} 79. Ke2 {[%clk 0:26:59]} 79... Rb2+ {[%clk 0:25:36.5]} 80. Kd1 {[%clk 0:27:07.5]} 80... Ke3 {[%clk 0:25:45.7]} 81. Kc1 {[%clk 0:27:16.5]} 81... Rg2 {[%clk 0:25:53.8]} 82. Kd1 {[%clk 0:27:22.5]} 82... Rh2 {[%clk 0:26:01.4]} 83. Kc1 {[%clk 0:27:31]} 83... Kd3 {[%clk 0:26:08.6]} 84. Kb1 {[%clk 0:27:38.9]} 84... Kc3 {[%clk 0:26:17.7]} 85. Ka1 {[%clk 0:27:46.5]} 85... Kb3 {[%clk 0:26:26.9]} 86. Kb1 {[%clk 0:27:55.5]} 86... Rh1# {[%clk 0:26:10.7]} 0-1

[Event "Live Chess"]
[Site "Chess.com"]
[Date "2021.02.06"]
[Round "2"]
[White "NiceLoyalLogic"]
[Black "CyberSpaceKing"]
[Result "1/2-1/2"]
[CurrentPosition "5k2/p4pp1/7p/3K1N2/4P3/7P/P4nP1/8 b - -"]
[Timezone "UTC"]
[ECO "C58"]
[ECOUrl "https://www.chess.com/openings/Italian-Game-Knight-Attack-Polerio-Bishop-Check-Line-6...c6-7.dxc6"]
[UTCDate "2021.02.06"]
[UTCTime "19:02:06"]
[WhiteElo "1047"]
[BlackElo "1046"]
[TimeControl "1200+10"]
[Termination "Game drawn by agreement"]
[StartTime "19:02:06"]
[EndDate "2021.02.06"]
[EndTime "19:19:42"]
[Link "https://www.chess.com/live/game/6472140186"]

1. e4 {[%clk 0:20:08.2]} 1... e5 {[%clk 0:20:08.4]} 2. Nf3 {[%clk 0:20:16.6]} 2... Nc6 {[%clk 0:20:17]} 3. Bc4 {[%clk 0:20:23.6]} 3... Nf6 {[%clk 0:20:25.3]} 4. Ng5 {[%clk 0:20:21]} 4... d5 {[%clk 0:20:30.9]} 5. exd5 {[%clk 0:20:26.6]} 5... Na5 {[%clk 0:20:39.5]} 6. Bb5+ {[%clk 0:20:34.9]} 6... c6 {[%clk 0:20:47.4]} 7. dxc6 {[%clk 0:20:44.3]} 7... Nxc6 {[%clk 0:20:56]} 8. Bd3 {[%clk 0:20:49.8]} 8... h6 {[%clk 0:20:59.8]} 9. Ne4 {[%clk 0:20:56.3]} 9... Nxe4 {[%clk 0:21:05.3]} 10. Bxe4 {[%clk 0:21:04.6]} 10... Bc5 {[%clk 0:21:13]} 11. O-O {[%clk 0:21:11.9]} 11... O-O {[%clk 0:21:21.9]} 12. Re1 {[%clk 0:21:19.1]} 12... Qf6 {[%clk 0:21:27.7]} 13. Rf1 {[%clk 0:21:07]} 13... Bf5 {[%clk 0:21:22.6]} 14. Bxf5 {[%clk 0:21:11.8]} 14... Qxf5 {[%clk 0:21:31.3]} 15. d3 {[%clk 0:21:04.1]} 15... Rad8 {[%clk 0:21:26.5]} 16. Be3 {[%clk 0:21:08.7]} 16... Bxe3 {[%clk 0:21:23.5]} 17. fxe3 {[%clk 0:21:17.4]} 17... Qg6 {[%clk 0:21:16]} 18. Nc3 {[%clk 0:19:16.6]} 18... b5 {[%clk 0:20:50.3]} 19. Nxb5 {[%clk 0:19:13.8]} 19... e4 {[%clk 0:20:54.2]} 20. Qe2 {[%clk 0:19:08.8]} 20... exd3 {[%clk 0:20:47.8]} 21. cxd3 {[%clk 0:18:57.6]} 21... Rxd3 {[%clk 0:20:38.4]} 22. Rad1 {[%clk 0:18:52.2]} 22... Rxd1 {[%clk 0:20:28.9]} 23. Rxd1 {[%clk 0:18:04.4]} 23... Qf5 {[%clk 0:20:19.5]} 24. e4 {[%clk 0:18:05.3]} 24... Qe5 {[%clk 0:20:08.6]} 25. Rd5 {[%clk 0:18:01.6]} 25... Qf4 {[%clk 0:19:55.8]} 26. Rf5 {[%clk 0:18:04.2]} 26... Qc1+ {[%clk 0:19:52.5]} 27. Rf1 {[%clk 0:18:07.7]} 27... Qc5+ {[%clk 0:19:52.1]} 28. Kh1 {[%clk 0:18:06.7]} 28... Rb8 {[%clk 0:19:53.7]} 29. Nc3 {[%clk 0:18:08.7]} 29... Qb4 {[%clk 0:19:34.8]} 30. Rf2 {[%clk 0:17:48.5]} 30... Nd4 {[%clk 0:19:29.3]} 31. Qd2 {[%clk 0:17:45.8]} 31... Rd8 {[%clk 0:19:09.7]} 32. Nd5 {[%clk 0:17:49.6]} 32... Qxd2 {[%clk 0:19:10.2]} 33. Rxd2 {[%clk 0:17:56.9]} 33... Ne6 {[%clk 0:19:02.6]} 34. Ne7+ {[%clk 0:18:00.2]} 34... Kf8 {[%clk 0:19:06.9]} 35. Rxd8+ {[%clk 0:18:03.6]} 35... Nxd8 {[%clk 0:19:15.3]} 36. Nf5 {[%clk 0:18:10]} 36... Ne6 {[%clk 0:19:15]} 37. Kg1 {[%clk 0:18:15.2]} 37... Nf4 {[%clk 0:19:06]} 38. Kf2 {[%clk 0:18:20.7]} 38... Nd3+ {[%clk 0:19:12.5]} 39. Ke2 {[%clk 0:18:28.4]} 39... Nxb2 {[%clk 0:19:21.2]} 40. Kd2 {[%clk 0:18:11]} 40... Nc4+ {[%clk 0:19:26.9]} 41. Kc3 {[%clk 0:18:16.8]} 41... Ne5 {[%clk 0:19:26.8]} 42. Kd4 {[%clk 0:18:22.6]} 42... Ng4 {[%clk 0:19:27.8]} 43. h3 {[%clk 0:18:29.2]} 43... Nf2 {[%clk 0:19:33.9]} 44. Kd5 {[%clk 0:18:14]} 1/2-1/2

[Event "Live Chess"]
[Site "Chess.com"]
[Date "2021.02.06"]
[Round "2"]
[White "Night362"]
[Black "sahejB"]
[Result "1-0"]
[CurrentPosition "k5r1/1Q5p/2n5/3p2p1/1R1P4/N1P2PP1/P6P/5RK1 b - -"]
[Timezone "UTC"]
[ECO "C42"]
[ECOUrl "https://www.chess.com/openings/Petrovs-Defense-Classical-Damiano-Variation-4.Qe2"]
[UTCDate "2021.02.06"]
[UTCTime "19:02:15"]
[WhiteElo "1167"]
[BlackElo "449"]
[TimeControl "1200+10"]
[Termination "Night362 won by checkmate"]
[StartTime "19:02:15"]
[EndDate "2021.02.06"]
[EndTime "19:12:26"]
[Link "https://www.chess.com/live/game/6472141175"]

1. e4 {[%clk 0:19:55.6]} 1... e5 {[%clk 0:20:08.5]} 2. Nf3 {[%clk 0:20:01.2]} 2... Nf6 {[%clk 0:20:15.1]} 3. Nxe5 {[%clk 0:20:06.2]} 3... Nxe4 {[%clk 0:20:23.3]} 4. Qe2 {[%clk 0:20:12.7]} 4... d5 {[%clk 0:20:20.6]} 5. d3 {[%clk 0:20:19]} 5... Nc5 {[%clk 0:20:16.9]} 6. Nc6+ {[%clk 0:20:26.2]} 6... Be6 {[%clk 0:20:18.7]} 7. Nxd8 {[%clk 0:20:33.1]} 7... Kxd8 {[%clk 0:20:25.5]} 8. d4 {[%clk 0:20:39.3]} 8... Ncd7 {[%clk 0:20:29.8]} 9. Bf4 {[%clk 0:20:44.1]} 9... Bb4+ {[%clk 0:20:35.8]} 10. c3 {[%clk 0:20:50.5]} 10... Ba5 {[%clk 0:20:40.2]} 11. Na3 {[%clk 0:20:56.2]} 11... Nc6 {[%clk 0:20:41.5]} 12. b4 {[%clk 0:21:00.3]} 12... Bb6 {[%clk 0:20:46.6]} 13. b5 {[%clk 0:21:01]} 13... Na5 {[%clk 0:20:48.1]} 14. Rb1 {[%clk 0:21:04]} 14... a6 {[%clk 0:20:54.8]} 15. bxa6 {[%clk 0:21:10.8]} 15... Rxa6 {[%clk 0:20:59.9]} 16. Qd2 {[%clk 0:20:53.6]} 16... Re8 {[%clk 0:20:57]} 17. Bxa6 {[%clk 0:20:58.9]} 17... bxa6 {[%clk 0:21:02.5]} 18. O-O {[%clk 0:21:05.5]} 18... Nf6 {[%clk 0:21:05.1]} 19. Be5 {[%clk 0:21:10.7]} 19... Ne4 {[%clk 0:21:03]} 20. Qe3 {[%clk 0:21:07.6]} 20... Rg8 {[%clk 0:20:11.3]} 21. g3 {[%clk 0:21:03.2]} 21... Bf5 {[%clk 0:20:10.3]} 22. f3 {[%clk 0:20:57.3]} 22... Nd6 {[%clk 0:19:56.5]} 23. Bxd6 {[%clk 0:21:00.1]} 23... cxd6 {[%clk 0:20:04.6]} 24. Qg5+ {[%clk 0:21:05.7]} 24... f6 {[%clk 0:19:51.9]} 25. Qxf5 {[%clk 0:21:12.7]} 25... Nc6 {[%clk 0:19:49.7]} 26. Rxb6 {[%clk 0:21:14.4]} 26... g6 {[%clk 0:19:51.4]} 27. Qxf6+ {[%clk 0:21:11.8]} 27... Kc7 {[%clk 0:19:54.5]} 28. Rxa6 {[%clk 0:21:11.2]} 28... Kb7 {[%clk 0:19:59.2]} 29. Ra4 {[%clk 0:21:14]} 29... Kb6 {[%clk 0:19:54.3]} 30. Qxd6 {[%clk 0:21:11]} 30... g5 {[%clk 0:19:48.4]} 31. Rb4+ {[%clk 0:21:14.9]} 31... Ka7 {[%clk 0:19:48.6]} 32. Qc7+ {[%clk 0:20:58.6]} 32... Ka8 {[%clk 0:19:52.4]} 33. Qb7# {[%clk 0:21:03.4]} 1-0

[Event "Live Chess"]
[Site "Chess.com"]
[Date "2021.02.06"]
[Round "2"]
[White "anuraagaravind"]
[Black "AquaJollyPopsicle"]
[Result "1-0"]
[CurrentPosition "5Q1k/6pp/3P4/4p3/3b4/1P5P/P4PP1/5RK1 b - -"]
[Timezone "UTC"]
[ECO "B54"]
[ECOUrl "https://www.chess.com/openings/Sicilian-Defense-Open-Variation"]
[UTCDate "2021.02.06"]
[UTCTime "19:02:16"]
[WhiteElo "1223"]
[BlackElo "637"]
[TimeControl "1200+10"]
[Termination "anuraagaravind won by checkmate"]
[StartTime "19:02:16"]
[EndDate "2021.02.06"]
[EndTime "19:17:38"]
[Link "https://www.chess.com/live/game/6472141757"]

1. e4 {[%clk 0:20:09.1]} 1... c5 {[%clk 0:20:05.4]} 2. Nf3 {[%clk 0:20:15.9]} 2... d6 {[%clk 0:20:13.2]} 3. d4 {[%clk 0:20:23.6]} 3... cxd4 {[%clk 0:20:07.9]} 4. Nxd4 {[%clk 0:20:31.4]} 4... e5 {[%clk 0:20:15.6]} 5. Nf3 {[%clk 0:20:36.2]} 5... Nc6 {[%clk 0:20:20.8]} 6. Nc3 {[%clk 0:20:41.3]} 6... Nf6 {[%clk 0:20:27.6]} 7. Bc4 {[%clk 0:20:44.6]} 7... Be7 {[%clk 0:20:34.9]} 8. Bg5 {[%clk 0:20:47.5]} 8... O-O {[%clk 0:20:38.2]} 9. Bxf6 {[%clk 0:20:55.6]} 9... Bxf6 {[%clk 0:20:45.8]} 10. O-O {[%clk 0:21:04.1]} 10... Qe7 {[%clk 0:20:44.1]} 11. Nd5 {[%clk 0:21:00.4]} 11... Qe6 {[%clk 0:20:48.9]} 12. b3 {[%clk 0:20:51.2]} 12... Bd8 {[%clk 0:20:47.5]} 13. Nc7 {[%clk 0:20:47.4]} 13... Bxc7 {[%clk 0:20:54.8]} 14. Bxe6 {[%clk 0:20:55.1]} 14... Bxe6 {[%clk 0:21:02.1]} 15. Qe2 {[%clk 0:20:35.3]} 15... Rfe8 {[%clk 0:21:03.2]} 16. Rad1 {[%clk 0:20:38.2]} 16... Rad8 {[%clk 0:21:10.9]} 17. c4 {[%clk 0:20:43.4]} 17... a6 {[%clk 0:21:13.4]} 18. h3 {[%clk 0:20:38.5]} 18... Ne7 {[%clk 0:21:13.7]} 19. Rfe1 {[%clk 0:20:22.3]} 19... Ng6 {[%clk 0:21:21.1]} 20. Ng5 {[%clk 0:20:07.3]} 20... Nf4 {[%clk 0:21:25.8]} 21. Qe3 {[%clk 0:19:59.4]} 21... Bd7 {[%clk 0:21:18.6]} 22. c5 {[%clk 0:19:45.5]} 22... dxc5 {[%clk 0:21:22.8]} 23. Qxc5 {[%clk 0:19:51.4]} 23... Rc8 {[%clk 0:21:20.4]} 24. Rxd7 {[%clk 0:19:55.7]} 24... b6 {[%clk 0:21:02]} 25. Qe3 {[%clk 0:19:49.6]} 25... Ng6 {[%clk 0:20:56.2]} 26. Rxf7 {[%clk 0:19:22.8]} 26... Bd8 {[%clk 0:20:57.7]} 27. Ra7 {[%clk 0:19:16]} 27... Be7 {[%clk 0:20:56.3]} 28. Rxa6 {[%clk 0:19:09.7]} 28... Bc5 {[%clk 0:21:03.9]} 29. Qg3 {[%clk 0:19:03.9]} 29... Rf8 {[%clk 0:20:42.3]} 30. Rf1 {[%clk 0:18:54]} 30... Rf7 {[%clk 0:20:40.1]} 31. Ne6 {[%clk 0:18:51.4]} 31... Bd6 {[%clk 0:20:32.2]} 32. Rxb6 {[%clk 0:18:54]} 32... Ba3 {[%clk 0:20:25.7]} 33. Ng5 {[%clk 0:18:48.4]} 33... Rfc7 {[%clk 0:20:28.6]} 34. Ne6 {[%clk 0:18:34.9]} 34... Bc5 {[%clk 0:20:23]} 35. Nxc7 {[%clk 0:18:39.5]} 35... Nf4 {[%clk 0:20:27.2]} 36. Qf3 {[%clk 0:17:48.3]} 36... Bxb6 {[%clk 0:20:27.9]} 37. Nd5 {[%clk 0:17:53.3]} 37... Nxd5 {[%clk 0:20:35.2]} 38. exd5 {[%clk 0:18:01.7]} 38... Rf8 {[%clk 0:20:41.3]} 39. Qe4 {[%clk 0:18:03.3]} 39... Bd4 {[%clk 0:20:46]} 40. d6 {[%clk 0:18:03.1]} 40... Rf4 {[%clk 0:20:47.6]} 41. Qd5+ {[%clk 0:18:06.1]} 41... Kh8 {[%clk 0:20:44.2]} 42. Qa8+ {[%clk 0:18:10.4]} 42... Rf8 {[%clk 0:20:50.5]} 43. Qxf8# {[%clk 0:18:19]} 1-0